lending/lending_fUSD_20250808
["ID","MTS","AMOUNT","RATE_DAILY","PERIOD"]
[378035814,1754674391320,-400.0,0.00023597,2]
[378035815,1754674391330,-1075.7,0.00023597,2]
[378035816,1754674391340,-1017.42,0.00023597,2]
[378035817,1754674391350,-467.67,0.00023597,2]
[378035818,1754674391360,-1552.35,0.00023597,2]
[378035819,1754674391370,-743.32,0.00023597,2]
[378035820,1754674391381,-466.11,0.00023597,2]
[378035821,1754674391391,-496.93,0.00023597,2]
[378035822,1754674391401,-400.0,0.00023597,2]
[378035823,1754674391410,-1260.4,0.00023597,2]
[378035824,1754674391420,-470.18,0.00023597,2]
[378035825,1754674391429,-530.99883293,0.00023597,2]
[378035826,1754674391439,-2588.08,0.00023597,2]
[378035827,1754674391448,-641.02,0.00023597,2]
[378035828,1754674391458,-400.0,0.00023597,2]
[378035829,1754674391467,-3797.91,0.00023597,2]
[378035830,1754674391477,-1241.75,0.00023597,2]
[378035831,1754674391487,-1052.14,0.00023597,2]
[378035832,1754674391497,-889.41,0.00023597,2]
[378035833,1754674391506,-739.75,0.00023597,2]
[378035834,1754674391516,-1630.68,0.00023597,2]
[378035835,1754674391525,-1099.06,0.00023597,2]
[378035836,1754674391535,-2289.35,0.00023597,2]
[378035837,1754674391544,-1124.14,0.00023597,2]
[378035838,1754674391554,-1750.29,0.00023597,2]
[378035839,1754674391563,-838.76,0.00023597,2]
[378035840,1754674391573,-1564.85,0.00023597,2]
[378035841,1754674391583,-752.21,0.00023597,2]
[378035842,1754674391592,-1259.02,0.00023597,2]
[378035843,1754674391601,-1360.45,0.00023597,2]
[378035844,1754674391611,-400.0,0.00023597,2]
[378035845,1754674391620,-400.0,0.00023597,2]
[378035846,1754674391628,-457.11,0.00023597,2]
[378035847,1754674391638,-447.46,0.00023597,2]
[378035848,1754674391647,-907.31,0.00023597,2]
[378035849,1754674391657,-516.43,0.00023597,2]
[378035850,1754674391667,-635.96,0.00023597,2]
[378035851,1754674391676,-841.87,0.00023597,2]
[378035852,1754674391686,-2511.44,0.00023597,2]
[378035853,1754674391695,-909.41,0.00023597,2]
[378035854,1754674391704,-400.0,0.00023597,2]
[378035855,1754674391714,-1757.88,0.00023597,2]
[378035856,1754674391724,-633.54,0.00023597,2]
[378035857,1754674391733,-240.0124479,0.00023597,2]
[378035858,1754674391743,-748.76,0.00023597,2]
[378035859,1754674391752,-3698.85,0.00023597,2]
[378035860,1754674391763,-1660.57,0.00023597,2]
[378035861,1754674391774,-466.12,0.00023597,2]
[378035862,1754674391783,-2130.8,0.00023597,2]
[378035863,1754674391792,-724.03,0.00023597,2]
[378035864,1754674391801,-420.45,0.00023597,2]
[378035865,1754674391811,-1000.99,0.00023597,2]
[378035866,1754674391820,-956.66,0.00023597,2]
[378035867,1754674391829,-825.21,0.00023597,2]
[378035868,1754674391838,-1301.7,0.00023597,2]
[378035869,1754674391848,-400.0,0.00023597,2]
[378035870,1754674391857,-1094.31,0.00023597,2]
[378035871,1754674391867,-815.06,0.00023597,2]
[378035872,1754674391876,-498.58,0.00023597,2]
[378035873,1754674391886,-1195.76,0.00023597,2]
[378035874,1754674391895,-442.27,0.00023597,2]
[378035875,1754674391905,-552.06,0.00023597,2]
[378035876,1754674391914,-484.27,0.00023597,2]
[378035877,1754674391924,-624.41,0.00023597,2]
[378035878,1754674391934,-844.68,0.00023597,2]
[378035879,1754674391943,-440.75,0.00023597,2]
[378035880,1754674391953,-1182.8,0.00023597,2]
[378035881,1754674392060,-2556.32,0.00023597,2]
[378035882,1754674392070,-1893.37,0.00023597,2]
[378035883,1754674392079,-524.52,0.00023597,2]
[378035884,1754674392089,-520.64,0.00023597,2]
[378035885,1754674392098,-3101.03,0.00023597,2]
[378035886,1754674392110,-616.08,0.00023597,2]
[378035887,1754674392119,-732.88,0.00023597,2]
[378035888,1754674392128,-856.38,0.00023597,2]
[378035889,1754674392137,-4832.78,0.00023597,2]
[378035890,1754674392147,-627.0,0.00023597,2]
[378035891,1754674392156,-952.86,0.00023597,2]
[378035892,1754674392165,-480.32,0.00023597,2]
[378035893,1754674392174,-400.0,0.00023597,2]
[378035894,1754674392183,-394.46,0.00023597,2]
[378035895,1754674392193,-3627.65,0.00023597,2]
[378035896,1754674392202,-803.51,0.00023597,2]
[378035897,1754674392211,-1841.68,0.00023597,2]
[378035898,1754674392220,-429.23,0.00023597,2]
[378035899,1754674392230,-1163.42,0.00023597,2]
[378035900,1754674392239,-781.89,0.00023597,2]
[378035901,1754674392249,-585.49,0.00023597,2]
[378035902,1754674392259,-467.89,0.00023597,2]
[378035903,1754674392269,-784.71,0.00023597,2]
[378035904,1754674392278,-971.72,0.00023597,2]
[378035905,1754674392288,-842.16,0.00023597,2]
[378035906,1754674392297,-1364.1,0.00023597,2]
[378035907,1754674392306,-437.29,0.00023597,2]
[378035908,1754674392315,-498.13,0.00023597,2]
[378035909,1754674392325,-4194.96,0.00023597,2]
[378035910,1754674392335,-482.49,0.00023597,2]
[378035911,1754674392345,-932.41,0.00023597,2]
[378035912,1754674392355,-400.0,0.00023597,2]
[378035913,1754674392364,-3720.86,0.00023597,2]
[378035914,1754674392374,-467.73,0.00023597,2]
[378035915,1754674392384,-694.04,0.00023597,2]
[378035916,1754674392393,-785.65,0.00023597,2]
[378035917,1754674392403,-1073.17,0.00023597,2]
[378035918,1754674392413,-2564.99,0.00023597,2]
[378035919,1754674392422,-1271.83,0.00023597,2]
[378035920,1754674392433,-695.37,0.00023597,2]
[378035921,1754674392443,-561.21,0.00023597,2]
[378035922,1754674392454,-501.58,0.00023597,2]
[378035923,1754674392463,-1291.31,0.00023597,2]
[378035924,1754674392474,-273.31,0.00023597,2]
[378035925,1754674392485,-3151.61,0.00023597,2]
[378035926,1754674392494,-1430.86,0.00023597,2]
[378035927,1754674392503,-836.4,0.00023597,2]
[378035928,1754674392512,-850.6,0.00023597,2]
[378035929,1754674392522,-421.02,0.00023597,2]
[378035930,1754674392531,-400.0,0.00023597,2]
[378035931,1754674392541,-2829.87,0.00023597,2]
[378035932,1754674392550,-3147.45,0.00023597,2]
[378035933,1754674392560,-2412.01,0.00023597,2]
[378035934,1754674392571,-3174.96,0.00023597,2]
[378035935,1754674392580,-475.15,0.00023598,2]
[378035936,1754674392590,-505.99750564,0.00023598,2]
[378035937,1754674392600,-400.0,0.00023598,2]
[378035938,1754674392610,-400.0,0.00023598,2]
[378035939,1754674392619,-325.51926829,0.00023598,2]
[378035940,1754674392630,-613.14,0.00023598,2]
[378035941,1754674392639,-400.0,0.00023598,2]
[378035942,1754674392650,-487.53,0.00023598,2]
[378035943,1754674392659,-400.0,0.00023598,2]
[378035944,1754674392668,-470.26,0.00023598,2]
[378035945,1754674392678,-400.0,0.00023598,2]
[378035946,1754674392687,-400.0,0.00023598,2]
[378035947,1754674392696,-580.1,0.00023598,2]
[378035948,1754674392705,-462.27,0.00023598,2]
[378035949,1754674392714,-400.0,0.00023598,2]
[378035950,1754674392723,-479.7,0.00023598,2]
[378035951,1754674392732,-568.03,0.00023598,2]
[378035952,1754674392741,-400.0,0.00023598,2]
[378035953,1754674392751,-421.44,0.00023598,2]
[378035954,1754674392761,-418.64,0.00023598,2]
[378035955,1754674392771,-504.49,0.00023598,2]
[378035956,1754674392780,-700.9,0.00023598,2]
[378035957,1754674392789,-520.77,0.00023598,2]
[378035958,1754674392798,-484.85,0.00023598,2]
[378035959,1754674392807,-432.17,0.00023598,2]
[378035960,1754674392816,-1178.17,0.00023598,2]
[378035961,1754674392825,-456.42,0.00023598,2]
[378035962,1754674392834,-400.0,0.00023598,2]
[378035963,1754674392843,-534.77,0.00023598,2]
[378035964,1754674392852,-400.0,0.00023598,2]
[378035965,1754674392861,-435.31,0.00023598,2]
[378035966,1754674392870,-4517.84,0.00023598,2]
[378035967,1754674392879,-477.72,0.00023598,2]
[378035968,1754674392889,-400.0,0.00023598,2]
[378035969,1754674392898,-400.0,0.00023598,2]
[378035970,1754674392908,-4062.08,0.00023598,2]
[378035971,1754674392917,-400.0,0.00023598,2]
[378035972,1754674392926,-735.5,0.00023598,2]
[378035973,1754674392935,-1368.24,0.00023598,2]
[378035974,1754674392944,-400.0,0.00023598,2]
[378035975,1754674392953,-400.0,0.00023598,2]
[378035976,1754674392963,-1187.72,0.00023598,2]
[378035977,1754674392972,-450.77,0.00023598,2]
[378035978,1754674392981,-400.0,0.00023598,2]
[378035979,1754674392990,-400.0,0.00023598,2]
[378035980,1754674393000,-1471.83,0.00023598,2]
[378035981,1754674393009,-557.2,0.00023598,2]
[378035982,1754674393020,-400.0,0.00023598,2]
[378035983,1754674393029,-436.5,0.00023598,2]
[378035984,1754674393038,-1359.72,0.00023598,2]
[378035985,1754674393048,-439.47,0.00023598,2]
[378035986,1754674393057,-400.0,0.00023598,2]
[378035987,1754674393066,-1098.38,0.00023598,2]
[378035988,1754674393075,-493.47,0.00023598,2]
[378035989,1754674393085,-505.49,0.00023598,2]
[378035990,1754674393094,-412.55,0.00023598,2]
[378035991,1754674393108,-400.0,0.00023598,2]
[378035992,1754674393119,-808.39,0.00023598,2]
[378035993,1754674393131,-496.49,0.00023598,2]
[378035994,1754674393143,-400.0,0.00023598,2]
[378035995,1754674393153,-485.06,0.00023598,2]
[378035996,1754674393162,-1155.05,0.00023598,2]
[378035997,1754674393171,-521.07,0.00023598,2]
[378035998,1754674393181,-643.05,0.00023598,2]
[378035999,1754674393191,-489.19,0.00023598,2]
[378036000,1754674393201,-760.76,0.00023598,2]
[378036001,1754674393210,-576.62,0.00023598,2]
[378036002,1754674393218,-437.71,0.00023598,2]
[378036003,1754674393228,-704.59,0.00023598,2]
[378036004,1754674393239,-919.49,0.00023598,2]
[378036005,1754674393249,-1259.56,0.00023598,2]
[378036006,1754674393258,-508.27,0.00023598,2]
[378036007,1754674393271,-516.93071571,0.00023598,2]
[378036008,1754674393288,-1124.56,0.00023598,2]
[378036009,1754674393297,-424.0,0.00023598,2]
[378036010,1754674393306,-2507.35,0.00023598,2]
[378036011,1754674393317,-1219.23,0.00023598,2]
[378036012,1754674393326,-365.20646497,0.00023598,2]
[378036013,1754674393335,-738.95,0.00023598,2]
[378036014,1754674393344,-739.75,0.00023598,2]
[378036015,1754674393354,-429.41,0.00023598,2]
[378036016,1754674393363,-408.09,0.00023598,2]
[378036017,1754674393374,-400.0,0.00023598,2]
[378036018,1754674393385,-22590.06,0.00023598,2]
[378036019,1754674393395,-444.79,0.00023598,2]
[378036020,1754674393404,-1009.83,0.00023598,2]
[378036021,1754674393414,-612.57,0.00023598,2]
[378036022,1754674393424,-400.0,0.00023598,2]
[378036023,1754674393434,-412.85,0.00023598,2]
[378036024,1754674393444,-1019.52,0.00023598,2]
[378036025,1754674393453,-602.24,0.00023598,2]
[378036026,1754674393462,-702.83,0.00023598,2]
[378036027,1754674393472,-220.4683687,0.00023598,2]
[378036028,1754674393481,-401.02,0.00023598,2]
[378036029,1754674393490,-480.03,0.00023598,2]
[378036030,1754674393500,-414.37,0.00023598,2]
[378036031,1754674393511,-434.90530301,0.00023598,2]
[378036032,1754674393521,-420.84,0.00023598,2]
[378036033,1754674393531,-469.13,0.00023598,2]
[378036034,1754674393540,-1156.43,0.00023598,2]
[378036035,1754674393550,-414.41,0.00023598,2]
[378036036,1754674393559,-1173.27,0.00023598,2]
[378036037,1754674393568,-2082.95,0.00023598,2]
[378036038,1754674393578,-400.0,0.00023598,2]
[378036039,1754674393588,-1355.51,0.00023598,2]
[378036040,1754674393597,-400.0,0.00023598,2]
[378036041,1754674393607,-454.2966474,0.00023598,2]
[378036042,1754674393617,-712.97,0.00023598,2]
[378036043,1754674393626,-1433.19,0.00023598,2]
[378036044,1754674393636,-1279.98,0.00023598,2]
[378036045,1754674393645,-2544.43,0.00023598,2]
[378036046,1754674393655,-545.33,0.00023598,2]
[378036047,1754674393664,-1361.67,0.00023598,2]
[378036048,1754674393673,-3304.91,0.00023598,2]
[378036049,1754674393683,-680.15,0.00023598,2]
[378036050,1754674393694,-446.42,0.00023598,2]
[378036051,1754674393703,-1015.86,0.00023598,2]
[378036052,1754674393713,-400.0,0.00023598,2]
[378036053,1754674393722,-6584.79,0.00023598,2]
[378036054,1754674393732,-472.84,0.00023598,2]
[378036055,1754674393741,-645.58,0.00023598,2]
[378036056,1754674393751,-434.44,0.00023598,2]
[378036057,1754674393761,-510.44,0.00023598,2]
[378036058,1754674393771,-329.29825287,0.00023598,2]
[378036059,1754674393780,-637.96,0.00023598,2]
[378036060,1754674393790,-4087.5,0.00023598,2]
[378036061,1754674393799,-400.0,0.00023598,2]
[378036062,1754674393808,-1167.59,0.00023598,2]
[378036063,1754674393817,-423.67,0.00023598,2]
[378036064,1754674393827,-839.14,0.00023598,2]
[378036065,1754674393836,-2534.72,0.00023598,2]
[378036066,1754674393846,-1923.32,0.00023598,2]
[378036067,1754674393855,-3221.54,0.00023598,2]
[378036068,1754674393865,-400.0,0.00023598,2]
[378036069,1754674393874,-2686.59,0.00023598,2]
[378036070,1754674393883,-2767.77,0.00023598,2]
[378036071,1754674393892,-4079.49,0.00023598,2]
[378036072,1754674393901,-1045.66,0.00023598,2]
[378036073,1754674393911,-3290.29,0.00023599,2]
[378036074,1754674393920,-2369.18,0.00023599,2]
[378036075,1754674393929,-13166.57,0.00023599,2]
[378036076,1754674393938,-1590.7,0.00023599,2]
[378036077,1754674393947,-1258.97,0.00023599,2]
[378036078,1754674393957,-2052.34,0.00023599,2]
[378036079,1754674393967,-508.01,0.00023599,2]
[378036080,1754674393976,-5234.06,0.00023599,2]
[378036081,1754674393986,-200.52542868,0.00023599,2]
[378036082,1754674393995,-2455.21,0.00023599,2]
[378036083,1754674394004,-1846.96,0.00023599,2]
[378036084,1754674394013,-1243.92,0.00023599,2]
[378036085,1754674394025,-1638.01,0.00023599,2]
[378036086,1754674394036,-1639.76,0.00023599,2]
[378036087,1754674394045,-1386.66,0.00023599,2]
[378036088,1754674394055,-2763.15,0.00023599,2]
[378036089,1754674394064,-3536.52,0.00023599,2]
[378036090,1754674394073,-2140.87,0.00023599,2]
[378036091,1754674394083,-1711.31,0.00023599,2]
[378036092,1754674394092,-449.95,0.00023599,2]
[378036093,1754674394104,-482.45045416,0.00023618,2]
[378036094,1754674394113,-1000.0,0.00023645,2]
[378036095,1754674394123,-500.0,0.00023647,2]
[378036096,1754674394132,-823.0,0.00023712,2]
[378036097,1754674394143,-309.29654756,0.00023746,2]
[378036098,1754674394152,-400.0,0.0002387,2]
[378036099,1754674394162,-661.11,0.0002387,2]
[378036100,1754674394171,-2954.91,0.0002387,2]
[378036101,1754674394182,-2275.54,0.0002387,2]
[378036102,1754674394191,-946.48,0.0002387,2]
[378036103,1754674394200,-7691.76,0.0002387,2]
[378036104,1754674394209,-848.32,0.0002387,2]
[378036105,1754674394219,-1032.75,0.0002387,2]
[378036106,1754674394228,-1855.93,0.0002387,2]
[378036107,1754674394237,-600.19,0.0002387,2]
[378036108,1754674394246,-675.93,0.0002387,2]
[378036109,1754674394255,-5291.16,0.0002387,2]
[378036110,1754674394264,-3569.89,0.0002387,2]
[378036111,1754674394276,-2731.24,0.0002387,2]
[378036112,1754674394286,-643.22,0.0002387,2]
[378036113,1754674394295,-821.85,0.0002387,2]
[378036114,1754674394304,-1935.23,0.0002387,2]
[378036115,1754674394313,-774.94,0.0002387,2]
[378036116,1754674394322,-538.44,0.0002387,2]
[378036117,1754674394331,-447.97,0.0002387,2]
[378036118,1754674394341,-947.0,0.0002387,2]
[378036119,1754674394350,-1798.0,0.0002387,2]
[378036120,1754674394362,-977.0,0.0002387,2]
[378036121,1754674394371,-155.776285,0.00023871,2]
[378036122,1754674394381,-156.799685,0.00023871,2]
[378036123,1754674394390,-183.659282,0.00023871,2]
[378036124,1754674394399,-2162.28,0.00023871,2]
[378036125,1754674394408,-788.52,0.00023871,2]
[378036126,1754674394419,-606.57,0.00023871,2]
[378036127,1754674394428,-691.64,0.00023871,2]
[378036128,1754674394438,-504.23,0.00023871,2]
[378036129,1754674394449,-672.8,0.00023871,2]
[378036130,1754674394459,-711.68,0.00023871,2]
[378036131,1754674394469,-767.72,0.00023871,2]
[378036132,1754674394478,-692.39,0.00023871,2]
[378036133,1754674394487,-411.37,0.00023871,2]
[378036134,1754674394497,-460.18,0.00023871,2]
[378036135,1754674394506,-680.33,0.00023871,2]
[378036136,1754674394515,-418.64,0.00023871,2]
[378036137,1754674394526,-412.4536658,0.00023871,2]
[378036138,1754674394535,-1053.65,0.00023871,2]
[378036139,1754674394544,-591.98,0.00023871,2]
[378036140,1754674394553,-400.0,0.00023871,2]
[378036141,1754674394562,-400.0,0.00023871,2]
[378036142,1754674394572,-820.42,0.00023871,2]
[378036143,1754674394581,-444.75,0.00023871,2]
[378036144,1754674394590,-540.05,0.00023871,2]
[378036145,1754674394599,-1065.2,0.00023871,2]
[378036146,1754674394608,-475.1,0.00023871,2]
[378036147,1754674394618,-663.95,0.00023871,2]
[378036148,1754674394628,-664.58,0.00023871,2]
[378036149,1754674394638,-552.2,0.00023871,2]
[378036150,1754674394647,-795.59,0.00023871,2]
[378036151,1754674394658,-1009.8,0.00023871,2]
[378036152,1754674394668,-400.0,0.00023871,2]
[378036153,1754674394677,-400.0,0.00023871,2]
[378036154,1754674394688,-758.91,0.00023871,2]
[378036155,1754674394697,-794.09,0.00023871,2]
[378036156,1754674394707,-405.9,0.00023871,2]
[378036157,1754674394716,-860.42,0.00023871,2]
[378036158,1754674394726,-497.38,0.00023871,2]
[378036159,1754674394735,-400.0,0.00023871,2]
[378036160,1754674394745,-675.98,0.00023871,2]
[378036161,1754674394755,-400.0,0.00023871,2]
[378036162,1754674394764,-1322.96,0.00023871,2]
[378036163,1754674394775,-515.94,0.00023871,2]
[378036164,1754674394785,-492.09,0.00023871,2]
[378036165,1754674394794,-1269.65,0.00023871,2]
[378036166,1754674394804,-1150.11,0.00023871,2]
[378036167,1754674394814,-729.76,0.00023871,2]
[378036168,1754674394823,-786.33,0.00023871,2]
[378036169,1754674394832,-400.0,0.00023871,2]
[378036170,1754674394842,-933.94,0.00023871,2]
[378036171,1754674394851,-1309.0,0.00023871,2]
[378036172,1754674394860,-630.93,0.00023871,2]
[378036173,1754674394870,-1106.53,0.00023871,2]
[378036174,1754674394879,-1201.36,0.00023871,2]
[378036175,1754674394889,-400.0,0.00023871,2]
[378036176,1754674394898,-623.4,0.00023871,2]
[378036177,1754674394907,-948.04,0.00023871,2]
[378036178,1754674394917,-1232.12,0.00023871,2]
[378036179,1754674394926,-501.95,0.00023871,2]
[378036180,1754674394935,-225.06027859,0.00023871,2]
[378036181,1754674394944,-1029.5,0.00023871,2]
[378036182,1754674394954,-195.2172199,0.00023871,2]
[378036183,1754674394963,-1075.7,0.00023871,2]
[378036184,1754674394973,-1017.42,0.00023871,2]
[378036185,1754674394982,-467.67,0.00023871,2]
[378036186,1754674394991,-1552.35,0.00023871,2]
[378036187,1754674395001,-743.32,0.00023871,2]
[378036188,1754674395010,-466.11,0.00023871,2]
[378036189,1754674395020,-496.93,0.00023871,2]
[378036190,1754674395029,-400.0,0.00023871,2]
[378036191,1754674395039,-1260.4,0.00023871,2]
[378036192,1754674395049,-470.18,0.00023871,2]
[378036193,1754674395059,-2588.08,0.00023871,2]
[378036194,1754674395070,-641.02,0.00023871,2]
[378036195,1754674395081,-400.0,0.00023871,2]
[378036196,1754674395092,-3797.91,0.00023871,2]
[378036197,1754674395108,-1241.75,0.00023871,2]
[378036198,1754674395119,-1052.14,0.00023871,2]
[378036199,1754674395129,-889.41,0.00023871,2]
[378036200,1754674395139,-739.75,0.00023871,2]
[378036201,1754674395150,-1630.68,0.00023871,2]
[378036202,1754674395161,-1099.06,0.00023871,2]
[378036203,1754674395171,-2289.35,0.00023871,2]
[378036204,1754674395183,-1124.14,0.00023871,2]
[378036205,1754674395193,-1750.29,0.00023871,2]
[378036206,1754674395202,-838.76,0.00023871,2]
[378036207,1754674395213,-1564.85,0.00023871,2]
[378036208,1754674395222,-752.21,0.00023871,2]
[378036209,1754674395231,-1259.02,0.00023871,2]
[378036210,1754674395240,-1360.45,0.00023871,2]
[378036211,1754674395249,-400.0,0.00023871,2]
[378036212,1754674395258,-241.92058973,0.00023871,2]
[378036213,1754674395268,-457.11,0.00023871,2]
[378036214,1754674395277,-907.31,0.00023871,2]
[378036215,1754674395286,-447.46,0.00023871,2]
[378036216,1754674395296,-516.43,0.00023871,2]
[378036217,1754674395305,-635.96,0.00023871,2]
[378036218,1754674395316,-841.87,0.00023871,2]
[378036219,1754674395325,-2511.44,0.00023871,2]
[378036220,1754674395335,-909.41,0.00023871,2]
[378036221,1754674395344,-400.0,0.00023871,2]
[378036222,1754674395354,-1757.88,0.00023871,2]
[378036223,1754674395363,-633.54,0.00023871,2]
[378036224,1754674395372,-748.76,0.00023871,2]
[378036225,1754674395381,-3698.85,0.00023871,2]
[378036226,1754674395390,-1660.57,0.00023871,2]
[378036227,1754674395400,-466.12,0.00023871,2]
[378036228,1754674395409,-2130.8,0.00023871,2]
[378036229,1754674395418,-724.03,0.00023871,2]
[378036230,1754674395428,-420.45,0.00023871,2]
[378036231,1754674395437,-1000.99,0.00023871,2]
[378036232,1754674395446,-956.66,0.00023871,2]
[378036233,1754674395455,-825.21,0.00023871,2]
[378036234,1754674395465,-400.0,0.00023871,2]
[378036235,1754674395475,-1094.31,0.00023871,2]
[378036236,1754674395484,-1301.7,0.00023871,2]
[378036237,1754674395494,-815.06,0.00023871,2]
[378036238,1754674395503,-498.58,0.00023871,2]
[378036239,1754674395513,-1195.76,0.00023871,2]
[378036240,1754674395525,-552.06,0.00023871,2]
[378036241,1754674395534,-442.27,0.00023871,2]
[378036242,1754674395543,-484.27,0.00023871,2]
[378036243,1754674395552,-624.41,0.00023871,2]
[378036244,1754674395562,-844.68,0.00023871,2]
[378036245,1754674395571,-440.75,0.00023871,2]
[378036246,1754674395582,-1182.8,0.00023871,2]
[378036247,1754674395594,-2556.32,0.00023871,2]
[378036248,1754674395604,-1893.37,0.00023871,2]
[378036249,1754674395614,-524.52,0.00023871,2]
[378036250,1754674395623,-520.64,0.00023871,2]
[378036251,1754674395633,-3101.03,0.00023871,2]
[378036252,1754674395645,-732.88,0.00023871,2]
[378036253,1754674395654,-856.38,0.00023871,2]
[378036254,1754674395663,-616.08,0.00023871,2]
[378036255,1754674395673,-4832.78,0.00023871,2]
[378036256,1754674395683,-627.0,0.00023871,2]
[378036257,1754674395694,-952.86,0.00023871,2]
[378036258,1754674395703,-480.32,0.00023871,2]
[378036259,1754674395712,-400.0,0.00023871,2]
[378036260,1754674395722,-3627.65,0.00023871,2]
[378036261,1754674395731,-803.51,0.00023871,2]
[378036262,1754674395740,-1841.68,0.00023871,2]
[378036263,1754674395750,-429.23,0.00023871,2]
[378036264,1754674395760,-1163.42,0.00023871,2]
[378036265,1754674395771,-781.89,0.00023871,2]
[378036266,1754674395780,-585.49,0.00023871,2]
[378036267,1754674395791,-467.89,0.00023871,2]
[378036268,1754674395800,-784.71,0.00023871,2]
[378036269,1754674395809,-971.72,0.00023871,2]
[378036270,1754674395818,-842.16,0.00023871,2]
[378036271,1754674395828,-1364.1,0.00023871,2]
[378036272,1754674395837,-437.29,0.00023871,2]
[378036273,1754674395847,-498.13,0.00023871,2]
[378036274,1754674395856,-482.49,0.00023871,2]
[378036275,1754674395866,-4194.96,0.00023871,2]
[378036276,1754674395876,-932.41,0.00023871,2]
[378036277,1754674395885,-400.0,0.00023871,2]
[378036278,1754674395895,-3720.86,0.00023871,2]
[378036279,1754674395904,-467.73,0.00023871,2]
[378036280,1754674395915,-694.04,0.00023871,2]
[378036281,1754674395926,-785.65,0.00023871,2]
[378036282,1754674395938,-1073.17,0.00023871,2]
[378036283,1754674395949,-2564.99,0.00023871,2]
[378036284,1754674395959,-1271.83,0.00023871,2]
[378036285,1754674395968,-695.37,0.00023871,2]
[378036286,1754674395978,-561.21,0.00023871,2]
[378036287,1754674395988,-501.58,0.00023871,2]
[378036288,1754674395998,-1291.31,0.00023871,2]
[378036289,1754674396008,-3151.61,0.00023871,2]
[378036290,1754674396018,-1430.86,0.00023871,2]
[378036291,1754674396027,-836.4,0.00023871,2]
[378036292,1754674396038,-850.6,0.00023871,2]
[378036293,1754674396047,-421.02,0.00023871,2]
[378036294,1754674396057,-400.0,0.00023871,2]
[378036295,1754674396066,-2829.87,0.00023871,2]
[378036296,1754674396076,-3147.45,0.00023871,2]
[378036297,1754674396088,-2412.01,0.00023871,2]
[378036298,1754674396100,-3174.96,0.00023871,2]
[378036299,1754674396115,-475.15,0.00023872,2]
[378036300,1754674396127,-348.8389009,0.00023872,2]
[378036301,1754674396138,-400.0,0.00023872,2]
[378036302,1754674396151,-613.14,0.00023872,2]
[378036303,1754674396163,-400.0,0.00023872,2]
[378036304,1754674396174,-487.53,0.00023872,2]
[378036305,1754674396392,-382.09988951,0.00023872,2]
[378036306,1754674396404,-470.26,0.00023872,2]
[378036307,1754674396414,-400.0,0.00023872,2]
[378036308,1754674396424,-281.49481302,0.00023872,2]
[378036309,1754674396433,-580.1,0.00023872,2]
[378036310,1754674396444,-462.27,0.00023872,2]
[378036311,1754674396454,-400.0,0.00023872,2]
[378036312,1754674396464,-479.7,0.00023872,2]
[378036313,1754674396475,-568.03,0.00023872,2]